[Event "SVK Extraliga 2019-20"]
[Site "Slovakia"]
[Date "2020.01.18"]
[Round "5.7"]
[White "Brnusak, Tomas"]
[Black "Sepesi, Samuel"]
[Result "0-1"]
[ECO "B38"]
[WhiteElo "2032"]
[BlackElo "2169"]
[Annotator "ChessBase"]
[PlyCount "68"]
[EventDate "2019.10.19"]
[EventType "team-tourn"]
[EventCountry "SVK"]
[SourceTitle "playchess.com"]
[Source "ChessBase"]
[SourceQuality "1"]
[WhiteTeam "Liptovska"]
[BlackTeam "Snina"]
[TimeControl "40/5400+30:1800+30"]

1. Nf3 {[%emt 0:00:00]} c5 {[%emt 0:01:14]} 2. c4 {[%emt 0:01:20]} g6 {[%emt 0:00:35]} 3. d4 {[%emt 0:00:57]} cxd4 {[%emt 0:00:16]} 4. Nxd4 {[%emt 0:00:44]} Nc6 {[%emt 0:01:01]} 5. e4 {[%emt 0:00:47]} Bg7 {[%emt 0:02:57]} 6. Be3 {[%emt 0:01:28]} Nf6 {[%emt 0:00:33]} 7. Nc3 {[%emt 0:01:04]} d6 {[%emt 0:00:20]} 8. Be2 {[%emt 0:01:04]} O-O {[%emt 0:00:06]} 9. O-O {[%emt 0:01:19]} Bd7 {[%emt 0:00:38]} 10. h3 {[%emt 0:01:33]} Nxd4 {[%emt 0:33:18]} 11. Bxd4 {[%emt 0:00:40]} Bc6 {[%emt 0:00:07]} 12. Qc2 {[%emt 0:02:14]} a5 {[%emt 0:01:16]} 13. Rad1 {[%emt 0:03:39]} Nd7 {[%emt 0:03:30]} 14. Bxg7 {[%emt 0:00:59]} Kxg7 {[%emt 0:00:02]} 15. Bg4 {[%emt 0:02:45]} Nc5 {[%emt 0:09:24]} 16. e5 {[%emt 0:02:44]} f5 {[%emt 0:00:25]} 17. Be2 {[%emt 0:02:52]} f4 {[%emt 0:00:32]} 18. Nd5 {[%emt 0:07:32]} Rf5 {[%emt 0:25:45]} 19. exd6 {[%emt 0:03:35]} exd6 {[%emt 0:00:08]} 20. Bg4 {[%emt 0:01:22]} Re5 {[%emt 0:06:17]} 21. Rfe1 {[%emt 0:02:54]} Rxe1+ {[%emt 0:03:37]} 22. Rxe1 {[%emt 0:00:08]} Bxd5 {[%emt 0:00:10]} 23. cxd5 {[%emt 0:00:44]} Qf6 {[%emt 0:01:39]} 24. h4 {[%emt 0:08:18]} h5 {[%emt 0:01:44]} 25. Bh3 {[%emt 0:00:38]} Qxh4 {[%emt 0:03:00]} 26. Qc3+ {[%emt 0:00:18]} Kh6 {[%emt 0:00:45]} 27. b3 {[%emt 0:20:11]} Rf8 {[%emt 0:00:45]} 28. Qxa5 {[%emt 0:01:40]} Nd3 {[%emt 0:01:13]} 29. Rf1 {[%emt 0:01:06]} f3 {[%emt 0:01:06]} 30. Qd2+ {[%emt 0:00:38]} Nf4 {[%emt 0:00:26]} 31. Rc1 {[%emt 0:01:16]} g5 {[%emt 0:00:47]} 32. Qe3 {[%emt 0:06:03]} fxg2 {[%emt 0:01:45]} 33. Bxg2 {[%emt 0:00:46]} Qg4 {[%emt 0:00:19]} 34. Qe4 {[%emt 0:03:02]} Ne2+ {[%emt 0:00:11]} 0-1

[Event "SVK Extraliga 2019-20"]
[Site "Slovakia"]
[Date "2020.01.18"]
[Round "5.7"]
[White "Striskova, Lucia"]
[Black "Takacs, Laszlo"]
[Result "0-1"]
[ECO "B72"]
[WhiteElo "1645"]
[BlackElo "2185"]
[Annotator "ChessBase"]
[PlyCount "70"]
[EventDate "2019.10.19"]
[EventType "team-tourn"]
[EventCountry "SVK"]
[SourceTitle "playchess.com"]
[Source "ChessBase"]
[SourceQuality "1"]
[WhiteTeam "Bratislava"]
[BlackTeam "Streda"]
[TimeControl "40/5400+30:1800+30"]

1. e4 {[%emt 0:00:00]} c5 {[%emt 0:00:00]} 2. Nf3 {[%emt 0:00:00]} d6 {[%emt 0:00:00]} 3. d4 {[%emt 0:00:02]} cxd4 {[%emt 0:00:00]} 4. Nxd4 {[%emt 0:00:10]} Nf6 {[%emt 0:00:00]} 5. Nc3 {[%emt 0:00:24]} g6 {[%emt 0:00:11]} 6. Be2 {[%emt 0:04:50]} Bg7 {[%emt 0:00:51]} 7. Be3 {[%emt 0:00:21]} O-O {[%emt 0:00:11]} 8. Qd2 {[%emt 0:00:55]} Nc6 {[%emt 0:00:22]} 9. f3 {[%emt 0:02:16]} d5 {[%emt 0:01:24]} 10. exd5 {[%emt 0:09:01]} Nxd5 {[%emt 0:00:11]} 11. Nxd5 {[%emt 0:01:01]} Qxd5 {[%emt 0:00:09]} 12. Nxc6 {[%emt 0:00:38]} Qxc6 {[%emt 0:01:11]} 13. c3 {[%emt 0:02:00]} Bf5 {[%emt 0:01:41]} 14. O-O {[%emt 0:00:26]} Rfd8 {[%emt 0:00:20]} 15. Qe1 {[%emt 0:00:34]} Qa4 {[%emt 0:06:49]} 16. Bd1 {[%emt 0:05:42]} Qb5 {[%emt 0:00:55]} 17. Qf2 {[%emt 0:03:36]} a5 {[%emt 0:05:22]} 18. a4 {[%emt 0:06:17]} Qc4 {[%emt 0:02:12]} 19. Ra3 {[%emt 0:05:43]} Rd7 {[%emt 0:06:42]} 20. Bb6 {[%emt 0:05:07]} Bh6 {[%emt 0:04:49]} 21. Be2 {[%emt 0:09:54]} Qe6 {[%emt 0:02:57]} 22. Rd1 {[%emt 0:03:40]} Rad8 {[%emt 0:27:40]} 23. Raa1 {[%emt 0:03:19]} Rd2 {[%emt 0:00:58]} 24. Kf1 {[%emt 0:08:56]} R8d7 {[%emt 0:04:55]} 25. Rxd2 {[%emt 0:07:25]} Rxd2 {[%emt 0:00:32]} 26. Re1 {[%emt 0:07:27]} Rxb2 {[%emt 0:04:17]} 27. Bxa5 {[%emt 0:01:41]} Bd3 {[%emt 0:01:06]} 28. g4 {[%emt 0:04:16]} Bf4 {[%emt 0:10:48]} 29. c4 {[%emt 0:03:16]} Qxc4 {[%emt 0:00:47]} 30. Bd8 {[%emt 0:03:53]} Bd6 {[%emt 0:02:18]} 31. Bb6 {[%emt 0:00:34]} Bb4 {[%emt 0:02:16]} 32. Qd4 {[%emt 0:01:22]} Bxe2+ {[%emt 0:00:14]} 33. Kg1 {[%emt 0:00:10]} Qxd4+ {[%emt 0:01:22]} 34. Bxd4 {[%emt 0:00:08]} Bxe1 {[%emt 0:00:28]} 35. Bxb2 {[%emt 0:00:28]} Bxf3 {[%emt 0:00:11]} 0-1

[Event "SVK Extraliga 2019-20"]
[Site "Slovakia"]
[Date "2020.01.18"]
[Round "5.8"]
[White "Jurcik, Martin"]
[Black "Bombek, Peter"]
[Result "1-0"]
[ECO "C00"]
[WhiteElo "2372"]
[BlackElo "2165"]
[Annotator "ChessBase"]
[PlyCount "67"]
[EventDate "2019.10.19"]
[EventType "team-tourn"]
[EventCountry "SVK"]
[SourceTitle "playchess.com"]
[Source "ChessBase"]
[SourceQuality "1"]
[WhiteTeam "Zilina"]
[BlackTeam "Dubnica"]
[TimeControl "40/5400+30:1800+30"]

1. e4 {[%emt 0:00:00]} e6 {[%emt 0:00:00]} 2. d4 {[%emt 0:00:15]} d5 {[%emt 0:00:00]} 3. Bd3 {[%emt 0:00:58]} c5 {[%emt 0:02:29]} 4. exd5 {[%emt 0:01:19]} exd5 {[%emt 0:01:16]} 5. Nf3 {[%emt 0:00:16]} c4 {[%emt 0:01:21]} 6. Be2 {[%emt 0:00:25]} Nf6 {[%emt 0:01:11]} 7. b3 {[%emt 0:04:24]} cxb3 {[%emt 0:00:10]} 8. axb3 {[%emt 0:00:06]} Bb4+ {[%emt 0:03:19]} 9. c3 {[%emt 0:02:13]} Bd6 {[%emt 0:00:15]} 10. Bg5 {[%emt 0:03:24]} h6 {[%emt 0:03:15]} 11. Bh4 {[%emt 0:00:55]} O-O {[%emt 0:01:24]} 12. O-O {[%emt 0:01:01]} Bf5 {[%emt 0:02:01]} 13. Ne5 {[%emt 0:19:10]} Nbd7 {[%emt 0:04:41]} 14. Nxd7 Bxd7 {[%emt 0:01:01]} 15. c4 {[%emt 0:13:53]} g5 {[%emt 0:15:00]} 16. Bg3 {[%emt 0:00:20]} Bf5 {[%emt 0:02:08]} 17. Bxd6 {[%emt 0:19:43]} Qxd6 {[%emt 0:00:46]} 18. c5 {[%emt 0:00:09]} Qe6 {[%emt 0:03:10]} 19. Nc3 {[%emt 0:02:23]} a6 {[%emt 0:02:29]} 20. Re1 {[%emt 0:02:03]} Rfe8 {[%emt 0:06:44]} 21. Qd2 {[%emt 0:01:42]} Ne4 {[%emt 0:02:41]} 22. Nxe4 {[%emt 0:00:12]} dxe4 {[%emt 0:11:11]} 23. d5 {[%emt 0:05:24]} Qe5 {[%emt 0:05:44]} 24. Bc4 {[%emt 0:01:53]} Rac8 {[%emt 0:05:12]} 25. b4 {[%emt 0:00:25]} Rcd8 {[%emt 0:03:15]} 26. Qe3 {[%emt 0:09:20]} Kg7 {[%emt 0:07:30]} 27. Rad1 {[%emt 0:03:55]} Qb2 {[%emt 0:01:49]} 28. Qd4+ {[%emt 0:01:18]} Qxd4 {[%emt 0:00:06]} 29. Rxd4 {[%emt 0:00:01]} Bg6 {[%emt 0:02:04]} 30. d6 {[%emt 0:01:16]} f5 {[%emt 0:03:03]} 31. Bxa6 {[%emt 0:01:52]} bxa6 {[%emt 0:00:25]} 32. c6 {[%emt 0:00:44]} Re6 {[%emt 0:04:05]} 33. c7 {[%emt 0:00:43]} Ra8 {[%emt 0:04:39]} 34. d7 {[%emt 0:00:19]} 1-0

[Event "SVK Extraliga 2019-20"]
[Site "Slovakia"]
[Date "2020.01.18"]
[Round "5.8"]
[White "Borhy, Marcell"]
[Black "Kapolkova, Greta"]
[Result "1-0"]
[ECO "A35"]
[WhiteElo "2215"]
[BlackElo "1493"]
[Annotator "ChessBase"]
[PlyCount "123"]
[EventDate "2019.10.19"]
[EventType "team-tourn"]
[EventCountry "SVK"]
[SourceTitle "playchess.com"]
[Source "ChessBase"]
[SourceQuality "1"]
[WhiteTeam "Streda"]
[BlackTeam "Bratislava"]
[TimeControl "40/5400+30:1800+30"]

1. c4 {[%emt 0:00:00]} c5 {[%emt 0:00:39]} 2. Nf3 {[%emt 0:00:06]} Nf6 {[%emt 0:00:47]} 3. Nc3 {[%emt 0:00:17]} Nc6 {[%emt 0:00:26]} 4. d4 {[%emt 0:00:46]} cxd4 {[%emt 0:01:23]} 5. Nxd4 {[%emt 0:00:57]} Nxd4 {[%emt 0:04:51]} 6. Qxd4 {[%emt 0:00:08]} d6 {[%emt 0:00:45]} 7. e4 {[%emt 0:01:17]} g6 {[%emt 0:03:02]} 8. c5 {[%emt 0:11:09]} a6 {[%emt 0:04:50]} 9. Bg5 {[%emt 0:04:00]} Bg7 {[%emt 0:09:49]} 10. cxd6 {[%emt 0:01:57]} Qxd6 {[%emt 0:04:08]} 11. Qxd6 {[%emt 0:01:09]} exd6 {[%emt 0:00:15]} 12. O-O-O {[%emt 0:03:29]} Be6 {[%emt 0:05:24]} 13. Rxd6 {[%emt 0:03:27]} O-O {[%emt 0:03:03]} 14. f3 {[%emt 0:00:38]} Rac8 {[%emt 0:00:56]} 15. Kb1 {[%emt 0:00:50]} h6 {[%emt 0:06:39]} 16. Be3 {[%emt 0:01:51]} Nd7 {[%emt 0:01:44]} 17. Be2 {[%emt 0:03:03]} h5 {[%emt 0:02:25]} 18. Nd5 {[%emt 0:03:45]} Rfe8 {[%emt 0:04:20]} 19. Rd1 {[%emt 0:02:19]} Be5 {[%emt 0:01:40]} 20. Rxd7 {[%emt 0:00:42]} Bxd7 {[%emt 0:00:24]} 21. Nb6 {[%emt 0:00:21]} Bc6 {[%emt 0:10:31]} 22. Nxc8 {[%emt 0:00:38]} Rxc8 {[%emt 0:00:55]} 23. g3 {[%emt 0:00:55]} Re8 {[%emt 0:01:38]} 24. Bc4 {[%emt 0:01:43]} Re7 {[%emt 0:08:18]} 25. Rd2 {[%emt 0:05:42]} Bg7 {[%emt 0:02:04]} 26. Bg5 {[%emt 0:04:03]} Rd7 {[%emt 0:01:48]} 27. Rxd7 {[%emt 0:01:15]} Bxd7 {[%emt 0:00:09]} 28. Bd5 {[%emt 0:00:06]} Bc8 {[%emt 0:01:18]} 29. Kc2 {[%emt 0:01:14]} Kf8 {[%emt 0:00:14]} 30. Bd2 {[%emt 0:00:37]} Ke7 {[%emt 0:01:06]} 31. Bb4+ {[%emt 0:00:13]} Ke8 {[%emt 0:00:30]} 32. Bc3 {[%emt 0:00:09]} Bh6 {[%emt 0:00:19]} 33. Kd3 {[%emt 0:00:18]} f5 {[%emt 0:00:25]} 34. exf5 {[%emt 0:03:56]} Bxf5+ {[%emt 0:00:22]} 35. Kc4 {[%emt 0:00:49]} Bc8 {[%emt 0:00:35]} 36. Kc5 {[%emt 0:00:42]} Kd7 {[%emt 0:00:47]} 37. Bf7 {[%emt 0:01:09]} Be3+ {[%emt 0:01:27]} 38. Bd4 {[%emt 0:00:38]} b6+ {[%emt 0:00:39]} 39. Kc4 {[%emt 0:00:16]} Bxd4 {[%emt 0:04:03]} 40. Kxd4 {[%emt 0:00:05]} Bb7 {[%emt 0:00:33]} 41. Ke3 {[%emt 0:30:25]} g5 {[%emt 0:30:38]} 42. Bxh5 {[%emt 0:00:24]} Ke6 {[%emt 0:00:10]} 43. f4 {[%emt 0:00:42]} Kf5 {[%emt 0:00:25]} 44. fxg5 {[%emt 0:00:28]} Kxg5 {[%emt 0:00:08]} 45. Bf3 {[%emt 0:00:05]} Bc8 {[%emt 0:00:21]} 46. Kd4 {[%emt 0:02:53]} Be6 {[%emt 0:00:26]} 47. a3 {[%emt 0:00:05]} Kf6 {[%emt 0:00:14]} 48. Ke4 {[%emt 0:00:31]} a5 {[%emt 0:00:14]} 49. Kf4 {[%emt 0:00:11]} b5 {[%emt 0:00:21]} 50. g4 {[%emt 0:00:37]} b4 {[%emt 0:01:11]} 51. g5+ {[%emt 0:00:22]} Kg6 {[%emt 0:01:00]} 52. axb4 {[%emt 0:00:58]} axb4 {[%emt 0:00:08]} 53. h4 {[%emt 0:00:08]} Bc4 {[%emt 0:01:41]} 54. h5+ {[%emt 0:00:20]} Kg7 {[%emt 0:01:22]} 55. Kf5 {[%emt 0:01:40]} Bd3+ {[%emt 0:00:33]} 56. Be4 {[%emt 0:00:06]} Bb5 {[%emt 0:00:59]} 57. h6+ {[%emt 0:00:18]} Kg8 {[%emt 0:00:57]} 58. Kf6 {[%emt 0:00:14]} Be8 {[%emt 0:00:48]} 59. Bg6 {[%emt 0:00:31]} Bc6 {[%emt 0:00:16]} 60. Bf7+ {[%emt 0:00:08]} Kh8 {[%emt 0:00:42]} 61. g6 {[%emt 0:01:34]} Be4 {[%emt 0:00:32]} 62. g7+ {[%emt 0:00:09]} 1-0

[Event "SVK Extraliga 2019-20"]
[Site "Slovakia"]
[Date "2020.01.18"]
[Round "5.8"]
[White "Klemanic, Emil"]
[Black "Kusiak, Matej"]
[Result "0-1"]
[ECO "B19"]
[WhiteElo "2099"]
[BlackElo "2245"]
[Annotator "ChessBase"]
[PlyCount "94"]
[EventDate "2019.10.19"]
[EventType "team-tourn"]
[EventCountry "SVK"]
[SourceTitle "playchess.com"]
[Source "ChessBase"]
[SourceQuality "1"]
[WhiteTeam "Košice"]
[BlackTeam "Prakovce"]
[TimeControl "40/5400+30:1800+30"]

1. e4 {[%emt 0:00:00]} c6 {[%emt 0:00:10]} 2. d4 {[%emt 0:00:01]} d5 {[%emt 0:00:04]} 3. Nc3 {[%emt 0:00:41]} dxe4 {[%emt 0:00:49]} 4. Nxe4 {[%emt 0:00:04]} Bf5 {[%emt 0:01:26]} 5. Ng3 {[%emt 0:00:07]} Bg6 {[%emt 0:00:04]} 6. Nf3 {[%emt 0:00:04]} Nd7 {[%emt 0:00:27]} 7. h4 {[%emt 0:00:04]} h6 {[%emt 0:00:04]} 8. h5 {[%emt 0:00:13]} Bh7 {[%emt 0:00:04]} 9. Bd3 {[%emt 0:00:04]} Bxd3 {[%emt 0:00:03]} 10. Qxd3 {[%emt 0:00:02]} Ngf6 {[%emt 0:00:13]} 11. Bd2 {[%emt 0:00:03]} e6 {[%emt 0:00:18]} 12. O-O-O {[%emt 0:00:20]} Bd6 {[%emt 0:00:30]} 13. Ne4 {[%emt 0:05:17]} Nxe4 {[%emt 0:00:05]} 14. Qxe4 {[%emt 0:00:07]} Nf6 {[%emt 0:00:16]} 15. Qh4 {[%emt 0:00:37]} Qc7 {[%emt 0:01:44]} 16. c4 {[%emt 0:00:26]} O-O-O {[%emt 0:03:59]} 17. Bc3 {[%emt 0:00:53]} Bf4+ {[%emt 0:04:50]} 18. Bd2 {[%emt 0:01:11]} Bxd2+ {[%emt 0:00:19]} 19. Rxd2 {[%emt 0:00:06]} Qa5 {[%emt 0:03:19]} 20. a3 {[%emt 0:08:49]} Qf5 {[%emt 0:00:24]} 21. Re1 {[%emt 0:15:16]} Qxh5 {[%emt 0:02:47]} 22. Qf4 {[%emt 0:00:06]} Qf5 {[%emt 0:02:34]} 23. Qe3 {[%emt 0:07:03]} Rhe8 {[%emt 0:08:03]} 24. Qc3 {[%emt 0:05:21]} Ne4 {[%emt 0:00:54]} 25. Rxe4 {[%emt 0:05:15]} Qxe4 {[%emt 0:00:02]} 26. Qa5 {[%emt 0:00:05]} Kb8 {[%emt 0:00:21]} 27. Qb4 {[%emt 0:00:13]} f6 {[%emt 0:00:52]} 28. a4 {[%emt 0:01:54]} g5 {[%emt 0:00:36]} 29. a5 {[%emt 0:03:23]} a6 {[%emt 0:01:26]} 30. d5 {[%emt 0:02:58]} exd5 {[%emt 0:00:22]} 31. Nd4 {[%emt 0:00:10]} dxc4 {[%emt 0:00:19]} 32. Qxc4 {[%emt 0:00:19]} Qd5 {[%emt 0:00:53]} 33. Qc3 {[%emt 0:09:43]} Re1+ {[%emt 0:02:07]} 34. Kc2 {[%emt 0:00:42]} Qe4+ {[%emt 0:00:23]} 35. Kb3 {[%emt 0:00:29]} Rc8 {[%emt 0:01:31]} 36. f3 {[%emt 0:03:49]} Qd5+ {[%emt 0:00:53]} 37. Kc2 {[%emt 0:00:06]} c5 {[%emt 0:00:48]} 38. Ne2 {[%emt 0:04:53]} Qa2 {[%emt 0:02:11]} 39. Nc1 {[%emt 0:01:20]} Qa1 {[%emt 0:00:37]} 40. Rd1 {[%emt 0:01:23]} Rxd1 {[%emt 0:00:42]} 41. Kxd1 {[%emt 0:31:46]} Qa4+ {[%emt 0:31:10]} 42. Ke2 {[%emt 0:12:44]} Re8+ {[%emt 0:00:09]} 43. Kd3 {[%emt 0:04:14]} c4+ {[%emt 0:00:11]} 44. Kd2 {[%emt 0:03:36]} Rd8+ {[%emt 0:00:16]} 45. Ke3 {[%emt 0:00:53]} Qc6 {[%emt 0:01:01]} 46. Kf2 {[%emt 0:01:36]} Qc5+ {[%emt 0:00:16]} 47. Kf1 {[%emt 0:04:05]} Qd4 {[%emt 0:00:55]} 0-1

[Event "SVK Extraliga 2019-20"]
[Site "Slovakia"]
[Date "2020.01.18"]
[Round "5.8"]
[White "Pcola, Jaroslav"]
[Black "Macko, Michal"]
[Result "0-1"]
[ECO "A04"]
[WhiteElo "2073"]
[BlackElo "2168"]
[Annotator "ChessBase"]
[PlyCount "49"]
[EventDate "2019.10.19"]
[EventType "team-tourn"]
[EventCountry "SVK"]
[SourceTitle "playchess.com"]
[Source "ChessBase"]
[SourceQuality "1"]
[WhiteTeam "Snina"]
[BlackTeam "Liptovska"]
[TimeControl "40/5400+30:1800+30"]

1. Nf3 {[%emt 0:00:00]} d5 {[%emt 0:00:00]} 2. g3 {[%emt 0:00:33]} Nf6 {[%emt 0:00:21]} 3. Bg2 {[%emt 0:00:52]} c5 {[%emt 0:00:06]} 4. c4 {[%emt 0:01:33]} Nc6 {[%emt 0:01:54]} 5. cxd5 {[%emt 0:05:19]} Nxd5 {[%emt 0:00:05]} 6. O-O {[%emt 0:00:27]} e5 {[%emt 0:00:10]} 7. d3 {[%emt 0:01:03]} Be7 {[%emt 0:00:20]} 8. Nc3 {[%emt 0:00:40]} Nc7 {[%emt 0:00:10]} 9. b3 {[%emt 0:01:35]} Rb8 {[%emt 0:01:46]} 10. Bb2 {[%emt 0:02:13]} O-O {[%emt 0:03:30]} 11. Qd2 {[%emt 0:09:41]} h6 {[%emt 0:18:19]} 12. Rfc1 {[%emt 0:04:41]} b6 {[%emt 0:01:55]} 13. e3 {[%emt 0:14:47]} Ba6 {[%emt 0:05:17]} 14. Rd1 {[%emt 0:01:30]} f5 {[%emt 0:00:52]} 15. Ne2 {[%emt 0:04:28]} Qd6 {[%emt 0:01:23]} 16. Ne1 {[%emt 0:14:28]} Bf6 {[%emt 0:03:37]} 17. f4 {[%emt 0:09:15]} Rbd8 {[%emt 0:05:06]} 18. fxe5 {[%emt 0:03:23]} Nxe5 {[%emt 0:00:19]} 19. d4 {[%emt 0:10:04]} Ng4 {[%emt 0:07:01]} 20. Nc2 {[%emt 0:01:44]} Rfe8 {[%emt 0:03:30]} 21. Nf4 {[%emt 0:06:05]} g5 {[%emt 0:02:40]} 22. Nh3 {[%emt 0:03:46]} cxd4 {[%emt 0:06:45]} 23. Bxd4 {[%emt 0:02:18]} Ne6 {[%emt 0:00:32]} 24. Nf2 {[%emt 0:01:01]} Nxd4 {[%emt 0:00:28]} 25. Nxg4 {[%emt 0:00:00]} 0-1

[Event "SVK Extraliga 2019-20"]
[Site "Slovakia"]
[Date "2020.01.18"]
[Round "5.8"]
[White "Magat, Jozef"]
[Black "Federic, Jozef"]
[Result "1/2-1/2"]
[ECO "D35"]
[WhiteElo "2053"]
[BlackElo "2223"]
[Annotator "ChessBase"]
[PlyCount "67"]
[EventDate "2019.10.19"]
[EventType "team-tourn"]
[EventCountry "SVK"]
[SourceTitle "playchess.com"]
[Source "ChessBase"]
[SourceQuality "1"]
[WhiteTeam "Dunajov"]
[BlackTeam "Modra "]
[WhiteTeamCountry "SVK"]
[BlackTeamCountry "SVK"]
[TimeControl "40/5400+30:1800+30"]

1. d4 {[%emt 0:00:00]} d5 {[%emt 0:00:00]} 2. Nf3 {[%emt 0:00:00]} Nf6 {[%emt 0:00:22]} 3. c4 {[%emt 0:00:09]} e6 {[%emt 0:00:09]} 4. Nc3 {[%emt 0:00:12]} c6 {[%emt 0:00:29]} 5. cxd5 {[%emt 0:02:57]} exd5 {[%emt 0:00:15]} 6. Bg5 {[%emt 0:00:07]} Be7 {[%emt 0:01:51]} 7. e3 {[%emt 0:01:54]} h6 {[%emt 0:02:04]} 8. Bh4 {[%emt 0:00:45]} Bf5 {[%emt 0:01:19]} 9. Bd3 {[%emt 0:00:42]} Bxd3 {[%emt 0:03:22]} 10. Qxd3 {[%emt 0:00:11]} Nbd7 {[%emt 0:00:44]} 11. O-O {[%emt 0:00:27]} O-O {[%emt 0:00:23]} 12. Rfe1 {[%emt 0:02:49]} Re8 {[%emt 0:04:24]} 13. a3 {[%emt 0:02:37]} a5 {[%emt 0:06:05]} 14. Nd2 {[%emt 0:03:55]} a4 {[%emt 0:05:30]} 15. Qc2 {[%emt 0:01:34]} Qa5 {[%emt 0:03:29]} 16. f3 {[%emt 0:01:36]} c5 {[%emt 0:04:19]} 17. dxc5 {[%emt 0:10:26]} Bxc5 {[%emt 0:01:02]} 18. Bf2 {[%emt 0:02:12]} Qa7 {[%emt 0:03:14]} 19. Nf1 {[%emt 0:03:07]} Qa6 {[%emt 0:25:21]} 20. Rad1 {[%emt 0:02:01]} Qc6 {[%emt 0:04:46]} 21. Qd3 {[%emt 0:13:12]} Ne5 {[%emt 0:05:49]} 22. Qb5 {[%emt 0:02:05]} Nc4 {[%emt 0:01:14]} 23. Re2 {[%emt 0:02:47]} Ra5 {[%emt 0:05:35]} 24. Qxc6 {[%emt 0:01:16]} bxc6 {[%emt 0:00:03]} 25. e4 {[%emt 0:15:21]} Bxf2+ {[%emt 0:00:43]} 26. Kxf2 {[%emt 0:00:41]} Rb8 {[%emt 0:00:20]} 27. exd5 {[%emt 0:03:39]} cxd5 {[%emt 0:02:16]} 28. Rd4 {[%emt 0:08:04]} Nxb2 {[%emt 0:02:04]} 29. Ne3 {[%emt 0:03:36]} Rb3 {[%emt 0:02:30]} 30. Nexd5 {[%emt 0:02:53]} Nxd5 {[%emt 0:00:17]} 31. Nxd5 {[%emt 0:00:24]} Rd3 {[%emt 0:09:13]} 32. Rxb2 {[%emt 0:07:10]} Rxd4 {[%emt 0:00:11]} 33. Ne7+ {[%emt 0:00:11]} Kh7 {[%emt 0:00:15]} 34. Nc6 {[%emt 0:00:11]} 1/2-1/2